bitfinex/quotes_SOLUSD_20230101
["timestamp","ask_amount","ask_price","bid_price","bid_amount"]
[1672579299908,22.12216809,9.9349,9.9324,75.59]
[1672579300526,22.12216809,9.9349,9.9182,940.73336821]
[1672579300527,22.12216809,9.9349,9.9319,40.0]
[1672579300735,66.67421667,9.9349,9.932,75.59]
[1672579301471,66.67421667,9.9349,9.9317,40.0]
[1672579301695,66.67421667,9.9349,9.9318,72.6651]
[1672579301897,66.67421667,9.9349,9.9316,75.6]
[1672579302103,66.67421667,9.9349,9.9315,40.0]
[1672579302326,66.67421667,9.9349,9.9316,75.6]
[1672579302759,66.67421667,9.9349,9.9317,40.0]
[1672579302975,66.67421667,9.9349,9.9318,75.59]
[1672579303399,66.67421667,9.9349,9.9308,75.6]
[1672579303607,66.67421667,9.9349,9.9296,75.61]
[1672579303806,66.67421667,9.9349,9.9297,40.0]
[1672579304128,66.67421667,9.9349,9.9299,40.0]
[1672579304324,66.67421667,9.9349,9.9301,40.0]
[1672579304534,66.67421667,9.9349,9.9302,75.61]
[1672579304964,66.67421667,9.9349,9.9303,40.0]
[1672579305173,66.67421667,9.9349,9.9304,75.6]
[1672579305384,66.67421667,9.9349,9.9305,40.0]
[1672579305597,66.67421667,9.9349,9.9306,75.6]
[1672579305920,66.67421667,9.9349,9.9307,40.0]
[1672579306132,66.67421667,9.9349,9.9308,75.6]
[1672579307275,66.67421667,9.9349,9.93,75.61]
[1672579307684,66.67421667,9.9349,9.9297,40.0]
[1672579307903,66.67421667,9.9349,9.9299,40.0]
[1672579308116,66.67421667,9.9349,9.93,75.61]
[1672579309171,66.67421667,9.9349,9.9301,40.0]
[1672579309484,66.67421667,9.9349,9.9302,75.61]
[1672579309903,66.67421667,9.9349,9.9301,40.0]
[1672579310114,66.67421667,9.9349,9.9302,75.61]
[1672579310522,66.67421667,9.9349,9.93,75.61]
[1672579310963,66.67421667,9.9349,9.9301,40.0]
[1672579311155,66.67421667,9.9349,9.9302,75.61]
[1672579311790,40.0,9.9348,9.9291,75.61]
[1672579312004,66.67421667,9.9349,9.929,75.62]
[1672579312625,66.67421667,9.9349,9.9291,40.0]
[1672579312841,66.67421667,9.9349,9.9292,75.61]
[1672579313052,66.67421667,9.9349,9.9293,40.0]
[1672579313261,66.67421667,9.9349,9.9295,40.0]
[1672579313483,66.67421667,9.9349,9.9296,75.61]
[1672579313691,66.67421667,9.9349,9.929,75.62]
[1672579313920,40.0,9.9348,9.929,75.62]
[1672579314748,40.0,9.9346,9.929,75.62]
[1672579315479,66.67165668,9.9347,9.929,75.62]
[1672579319489,63.67165668,9.9347,9.9291,40.0]
[1672579319689,63.67165668,9.9347,9.9293,40.0]
[1672579319903,63.67165668,9.9347,9.9295,40.0]
[1672579320110,63.67165668,9.9347,9.9296,75.61]
[1672579320318,63.67165668,9.9347,9.9297,40.0]
[1672579320526,63.67165668,9.9347,9.9299,40.0]
[1672579320851,63.67165668,9.9347,9.9301,40.0]
[1672579321066,63.67165668,9.9347,9.9302,75.61]
[1672579321292,63.67165668,9.9347,9.93,75.61]
[1672579321989,63.67165668,9.9347,9.9277,40.0]
[1672579321990,63.67165668,9.9347,9.929,75.62]
[1672579323066,63.67165668,9.9347,9.9291,40.0]
[1672579323265,63.67165668,9.9347,9.9292,75.61]
[1672579323478,63.67165668,9.9347,9.9293,40.0]
[1672579323685,63.67165668,9.9347,9.9295,40.0]
[1672579323902,63.67165668,9.9347,9.9297,40.0]
[1672579324110,63.67165668,9.9347,9.9298,75.61]
[1672579324325,63.67165668,9.9347,9.9299,40.0]
[1672579324533,63.67165668,9.9347,9.93,75.61]
[1672579324740,63.67165668,9.9347,9.9301,40.0]
[1672579324952,63.67165668,9.9347,9.9302,75.61]
[1672579325269,63.67165668,9.9347,9.9303,40.0]
[1672579325482,63.67165668,9.9347,9.9304,75.6]
[1672579325689,63.67165668,9.9347,9.9305,40.0]
[1672579325915,63.67165668,9.9347,9.9307,40.0]
[1672579326093,63.67165668,9.9347,9.9308,75.6]
[1672579327160,63.67165668,9.9347,9.9304,75.6]
[1672579327795,63.67165668,9.9347,9.9299,40.0]
[1672579327986,63.67165668,9.9347,9.9301,40.0]
[1672579328196,63.67165668,9.9347,9.9302,75.61]
[1672579328738,63.67165668,9.9347,9.9298,75.61]
[1672579328930,63.67165668,9.9347,9.9295,40.0]
[1672579329268,63.67165668,9.9347,9.9297,40.0]
[1672579329581,63.67165668,9.9347,9.9299,40.0]
[1672579329790,63.67165668,9.9347,9.93,75.61]
[1672579330200,63.67165668,9.9347,9.9297,40.0]
[1672579330410,63.67165668,9.9347,9.9298,75.61]
[1672579330620,63.67165668,9.9347,9.9296,75.61]
[1672579331667,63.67165668,9.9347,9.9292,75.61]
[1672579333670,63.67165668,9.9347,9.9181,175.6425333]
[1672579333877,63.67165668,9.9347,9.9277,20.0]
[1672579333878,40.0,9.9346,9.9277,20.0]
[1672579334091,40.0,9.9346,9.927,20.0]
[1672579334728,66.41909659,9.9345,9.927,20.0]
[1672579334931,40.0,9.9344,9.927,20.0]
[1672579335353,40.0,9.9344,9.9271,75.63]
[1672579335551,40.0,9.9344,9.9272,20.0]
[1672579336196,40.0,9.9344,9.9271,20.0]
[1672579336727,40.0,9.9342,9.9271,20.0]
[1672579337144,40.0,9.9342,9.9272,75.63]
[1672579337338,40.0,9.9342,9.9273,20.0]
[1672579337974,40.0,9.9342,9.9271,20.0]
[1672579338189,40.0,9.9342,9.9272,75.63]
[1672579338399,40.0,9.9342,9.9273,20.0]
[1672579338614,40.0,9.9342,9.9274,75.63]
[1672579338811,40.0,9.9342,9.9275,20.0]
[1672579339025,40.0,9.9342,9.9276,75.63]
[1672579339248,40.0,9.9342,9.9277,20.0]
[1672579339464,40.0,9.9342,9.9278,75.62]
[1672579340615,66.4139761,9.9341,9.9278,75.62]
[1672579340810,40.0,9.934,9.9278,75.62]
[1672579344612,66.4114157,9.9339,9.9278,75.62]
[1672579344926,40.0,9.9338,9.9278,75.62]
[1672579347453,66.4114157,9.9339,9.9278,75.62]
[1672579348055,40.0,9.9338,9.9278,75.62]
[1672579348708,106.41013546,9.9338,9.9278,75.62]
[1672579372763,66.41013546,9.9338,9.9278,75.62]
[1672579373099,40.0,9.9337,9.9278,75.62]
[1672579373725,106.4038552,9.9337,9.9278,75.62]
[1672579377018,106.4038552,9.9337,9.9277,20.0]
[1672579377203,106.4038552,9.9337,9.927,20.0]
[1672579377533,106.4038552,9.9337,9.9271,75.63]
[1672579377736,106.4038552,9.9337,9.9272,20.0]
[1672579377940,106.4038552,9.9337,9.9273,75.63]
[1672579378146,106.4038552,9.9337,9.9274,20.0]
[1672579378362,106.4038552,9.9337,9.9275,75.63]
[1672579378568,106.4038552,9.9337,9.9276,20.0]
[1672579378778,106.4038552,9.9337,9.9277,75.63]
[1672579387826,106.4038552,9.9337,9.9206,75.62056346]
[1672579387827,20.0,9.9336,9.9206,75.62056346]
[1672579388037,20.0,9.9336,9.9182,23.263]
[1672579388038,75.58,9.9335,9.9182,23.263]
[1672579388249,40.0,9.9333,9.9182,23.263]
[1672579388446,1098.3489516,9.9334,9.9201,75.68]
[1672579388661,66.35518603,9.9299,9.9202,40.0]
[1672579388988,66.35518603,9.9299,9.9205,40.0]
[1672579389200,66.35518603,9.9299,9.9208,40.0]
[1672579389398,66.35518603,9.9299,9.921,302.2]
[1672579389610,66.35518603,9.9299,9.9212,342.2]
[1672579389814,1033.7759121,9.937,9.9214,302.2]
[1672579390152,40.0,9.9368,9.9216,40.0]
[1672579390475,40.0,9.9368,9.9218,40.0]
[1672579390657,40.0,9.9366,9.922,40.0]
[1672579390867,40.0,9.9366,9.9221,95.67]
[1672579391076,40.0,9.9366,9.9222,40.0]
[1672579391301,40.0,9.9364,9.9224,40.0]
[1672579391514,40.0,9.9364,9.9226,40.0]
[1672579391716,40.0,9.9364,9.9227,20.0]
[1672579391931,62.9766,9.9364,9.9229,40.0]
[1672579392133,62.9766,9.9364,9.923,75.66]
[1672579392335,62.9766,9.9364,9.9232,40.0]
[1672579392541,62.9766,9.9364,9.9233,95.66]
[1672579392773,66.39233165,9.9328,9.9234,40.0]
[1672579392987,66.39233165,9.9328,9.9236,40.0]
[1672579393298,66.39233165,9.9328,9.9238,40.0]
[1672579393497,66.39233165,9.9328,9.9239,95.65]
[1672579393698,62.9766,9.9364,9.9239,95.65]
[1672579393699,62.9766,9.9364,9.924,40.0]
[1672579393910,62.9766,9.9364,9.9242,40.0]
[1672579394119,62.9766,9.9364,9.9244,40.0]
[1672579394330,62.9766,9.9364,9.9245,95.65]
[1672579394555,62.9766,9.9364,9.9246,40.0]
[1672579394761,62.9766,9.9364,9.9248,40.0]
[1672579394968,62.9766,9.9364,9.9249,95.65]
[1672579395194,62.9766,9.9364,9.925,40.0]
[1672579395508,62.9766,9.9364,9.9252,40.0]
[1672579395714,62.9766,9.9364,9.9253,95.64]
[1672579396028,62.9766,9.9364,9.9254,40.0]
[1672579396239,62.9766,9.9364,9.9256,40.0]
[1672579396446,62.9766,9.9364,9.9257,75.64]
[1672579396657,62.9766,9.9364,9.9258,40.0]
[1672579396658,66.4371337,9.9363,9.9258,40.0]
[1672579396866,40.0,9.9362,9.926,40.0]
[1672579397074,40.0,9.9362,9.9261,95.64]
[1672579397277,40.0,9.9362,9.9262,40.0]
[1672579397489,40.0,9.9362,9.9264,40.0]
[1672579397816,40.0,9.9362,9.9266,40.0]
[1672579398137,40.0,9.9362,9.9268,40.0]
[1672579398323,40.0,9.9362,9.9269,95.63]
[1672579398653,40.0,9.9362,9.927,40.0]
[1672579398843,40.0,9.9362,9.9272,40.0]
[1672579399052,40.0,9.9362,9.9274,40.0]
[1672579399265,40.0,9.9362,9.9275,95.63]
[1672579399692,40.0,9.9362,9.9276,24.7294]
[1672579399899,40.0,9.9362,9.9277,95.63]
[1672579400318,40.0,9.9362,9.9278,24.7294]
[1672579400529,40.0,9.9362,9.9279,75.62]
[1672579400861,40.0,9.936,9.928,40.0]
[1672579401066,66.43457443,9.9361,9.9281,75.62]
[1672579401288,40.0,9.936,9.928,75.62]
[1672579404639,66.43201506,9.9359,9.928,75.62]
[1672579404950,40.0,9.9358,9.928,75.62]
[1672579408628,66.42945559,9.9357,9.928,75.62]
[1672579408831,40.0,9.9356,9.928,75.62]
[1672579412848,40.0,9.9354,9.928,75.62]
[1672579414112,66.42689602,9.9355,9.928,75.62]
[1672579415459,66.42689602,9.9355,9.9281,40.0]
[1672579415687,40.0,9.936,9.9282,75.62]
[1672579416440,452.48488258,9.9474,9.9282,75.62]
[1672579416642,40.0,9.9358,9.9282,75.62]
[1672579417178,66.43201506,9.9359,9.9282,75.62]
[1672579417379,66.43201506,9.9359,9.9283,40.0]
[1672579417380,40.0,9.9358,9.9283,40.0]
[1672579417596,40.0,9.9358,9.9284,75.62]
[1672579420765,66.42945559,9.9357,9.9281,40.0]
[1672579420961,66.42945559,9.9357,9.9283,40.0]
[1672579421283,66.42945559,9.9357,9.9284,75.62]
[1672579421631,66.42945559,9.9357,9.928,75.62]
[1672579421944,40.0,9.9356,9.928,75.62]
[1672579422137,150.82829419,9.9417,9.9281,40.0]
[1672579422329,150.82829419,9.9418,9.9282,75.62]
[1672579422558,150.82829419,9.9418,9.9281,75.62]
[1672579422775,150.82829419,9.9418,9.9282,40.0]
[1672579422997,75.54,9.939,9.9283,75.62]
[1672579423199,75.53,9.9404,9.9284,40.0]
[1672579423398,75.53,9.9408,9.9286,40.0]
[1672579423621,75.53,9.9404,9.9287,75.62]
[1672579423864,75.54,9.939,9.9282,75.62]
[1672579424141,75.53,9.9404,9.9283,40.0]
[1672579424443,75.53,9.9404,9.9285,40.0]
[1672579424668,40.0,9.9361,9.9286,75.62]
[1672579424868,40.0,9.9361,9.9282,75.62]
[1672579426702,66.43585408,9.9362,9.9283,40.0]
[1672579426869,66.43585408,9.9362,9.9284,75.62]
[1672579427400,40.0,9.9361,9.9284,75.62]
[1672579427606,40.0,9.9361,9.9282,75.62]
[1672579428740,40.0,9.9359,9.9282,75.62]
[1672579431472,66.43329476,9.936,9.9282,75.62]
[1672579431575,40.0,9.9359,9.9282,75.62]
[1672579432860,40.0,9.9357,9.9282,75.62]
[1672579436744,40.0,9.9355,9.9282,75.62]
[1672579439161,66.42817582,9.9356,9.9282,75.62]
[1672579439699,40.0,9.9361,9.9282,75.62]
[1672579440734,66.43329476,9.936,9.9282,75.62]
[1672579441066,40.0,9.9359,9.9282,75.62]
[1672579442423,66.43329476,9.936,9.9282,75.62]
[1672579442850,40.0,9.9359,9.9282,75.62]
[1672579443255,66.43329476,9.936,9.9283,40.0]
[1672579443468,66.43329476,9.936,9.9285,40.0]
[1672579443700,66.43329476,9.936,9.9286,75.62]
[1672579445151,66.43329476,9.936,9.9285,40.0]
[1672579445259,66.43329476,9.936,9.9286,75.62]
[1672579446095,66.43329476,9.936,9.9284,75.62]
[1672579446972,40.0,9.9359,9.9284,75.62]
[1672579447779,66.43073534,9.9358,9.9284,75.62]
[1672579449243,66.43073534,9.9358,9.9285,40.0]
[1672579449469,66.43073534,9.9358,9.9286,75.62]
[1672579449788,66.43073534,9.9358,9.9287,40.0]
[1672579449987,150.82829419,9.9412,9.9289,40.0]
[1672579450290,40.0,9.9403,9.9291,40.0]
[1672579450502,40.0,9.9403,9.9293,40.0]
[1672579450721,40.0,9.9403,9.9294,75.61]
[1672579450932,40.0,9.9403,9.9287,40.0]
[1672579451135,40.0,9.9403,9.9288,75.62]
[1672579451350,40.0,9.9403,9.7753,7.5]
[1672579451351,40.0,9.9403,9.9285,75.62]
[1672579451859,66.43585408,9.9362,9.9286,40.0]
[1672579452069,66.43585408,9.9362,9.9288,40.0]
[1672579452276,66.43585408,9.9362,9.9289,75.62]
[1672579453222,66.43585408,9.9362,9.9287,75.62]
[1672579453450,40.0,9.9361,9.9285,75.62]
[1672579453862,66.43585408,9.9362,9.9286,40.0]
[1672579454102,66.43585408,9.9362,9.9288,40.0]
[1672579454449,66.43585408,9.9362,9.929,40.0]
[1672579454715,40.0,9.9361,9.9291,75.61]
[1672579455025,40.0,9.9361,9.9285,75.62]
[1672579455853,40.0,9.9359,9.9285,75.62]
[1672579458055,40.0,9.9357,9.9278,75.62]
[1672579458257,40.0,9.9357,9.9274,23.3946]
[1672579458258,40.0,9.9357,9.9285,75.62]
[1672579458471,140.55953338,9.9356,9.9285,75.62]
[1672579458679,140.55953338,9.9356,9.9274,23.3946]
[1672579458680,40.0,9.9355,9.9278,75.62]
[1672579458898,180.55953338,9.9355,9.9285,75.62]
[1672579459121,74.28111549,9.9354,9.9285,75.62]
[1672579459432,40.0,9.9353,9.9285,75.62]
[1672579459836,106.42433634,9.9353,9.9285,75.62]
[1672579477300,106.42433634,9.9353,9.9285,75.51875472]
[1672579494432,106.33083245,9.9353,9.9285,75.51875472]
[1672579496761,66.42433634,9.9353,9.9286,40.0]
[1672579496970,66.42433634,9.9353,9.9288,40.0]
[1672579497173,66.42433634,9.9353,9.9289,75.62]
[1672579497492,66.42433634,9.9353,9.929,40.0]
[1672579497714,23.6745,9.9373,9.9292,40.0]
[1672579498024,23.6745,9.9373,9.9294,40.0]
[1672579498336,23.6745,9.9373,9.9296,40.0]
[1672579498547,23.6745,9.9373,9.9297,75.61]
[1672579498755,40.0,9.9371,9.9297,75.61]
[1672579499068,66.44864913,9.9372,9.9297,75.61]
[1672579499277,66.44864913,9.9372,9.9243,40.0]
[1672579499278,40.0,9.9371,9.9292,99.1361]
[1672579499681,66.44736974,9.9371,9.9292,99.1361]
[1672579499910,40.0,9.937,9.9292,99.1361]
[1672579500316,74.28111549,9.9369,9.9292,99.1361]
[1672579500646,40.0,9.9368,9.9292,99.1361]
[1672579504116,40.0,9.9366,9.9292,99.1361]
[1672579508013,40.0,9.9364,9.9292,99.1361]
[1672579511485,66.43969286,9.9365,9.9292,99.1361]
[1672579512218,66.4371337,9.9363,9.9292,99.1361]
[1672579512428,40.0,9.9362,9.9292,99.1361]
[1672579512643,66.4371337,9.9363,9.9292,99.1361]
[1672579513793,74.28111549,9.9392,9.9292,99.1361]
[1672579516742,66.44864913,9.9372,9.9292,99.1361]
[1672579516928,40.0,9.9371,9.9292,99.1361]
[1672579520728,66.44609032,9.937,9.9292,99.1361]
[1672579520947,40.0,9.9369,9.9292,99.1361]
[1672579521149,66.44609032,9.937,9.9293,40.0]
[1672579521348,66.44609032,9.937,9.9294,75.61]
[1672579521555,66.44609032,9.937,9.9295,40.0]
[1672579521768,66.44609032,9.937,9.9297,40.0]
[1672579521975,66.44609032,9.937,9.9298,75.61]
[1672579522618,66.44609032,9.937,9.9296,75.61]
[1672579522828,40.0,9.9369,9.9293,75.61]
[1672579523762,66.44609032,9.937,9.9294,40.0]
[1672579523972,66.44609032,9.937,9.9295,75.61]
[1672579524196,66.44609032,9.937,9.9296,40.0]
[1672579524514,66.44609032,9.937,9.9297,75.61]
[1672579525145,66.44609032,9.937,9.9293,75.61]
[1672579525335,40.0,9.9369,9.9294,40.0]
[1672579525544,40.0,9.9369,9.9296,40.0]
[1672579525770,106.44481088,9.9369,9.9297,75.61]
[1672579525980,106.44481088,9.9369,9.9296,40.0]
[1672579526184,106.44481088,9.9369,9.9297,75.61]
[1672579526397,106.44481088,9.9369,9.9293,75.61]
[1672579526600,106.44481088,9.9369,9.9294,40.0]
[1672579526935,106.44481088,9.9369,9.9295,75.61]
[1672579527568,106.44481088,9.9369,9.9293,75.61]
[1672579545843,173.39879786,9.9369,9.9293,75.61]
[1672579563084,237.76524669,9.9369,9.9293,75.61]
[1672579569723,290.02825178,9.9369,9.9293,75.61]
[1672579569918,40.0,9.9367,9.9292,23.5261]
[1672579570345,40.0,9.9365,9.9292,23.5261]
[1672579570663,40.0,9.9365,9.9109,302.48225384]
[1672579570664,40.0,9.9363,9.9109,302.48225384]
[1672579570876,40.0,9.9363,9.9203,40.0]
[1672579570877,1241.16039456,9.9362,9.9203,40.0]
[1672579571186,40.0,9.936,9.9203,40.0]
[1672579571396,1163.28798671,9.936,9.9204,99.5351]
[1672579571591,91.36730786,9.9362,9.9204,99.5351]
[1672579571592,40.0,9.9358,9.9205,40.0]
[1672579571800,40.0,9.9358,9.9206,75.68]
[1672579572025,40.0,9.9356,9.9207,60.0]
[1672579572235,40.0,9.9356,9.9209,40.0]
[1672579572451,40.0,9.9354,9.921,95.68]
[1672579572761,40.0,9.9352,9.9211,40.0]
[1672579572973,40.0,9.9352,9.9213,40.0]
[1672579573186,40.0,9.935,9.9214,95.67]
[1672579573385,40.0,9.935,9.9215,40.0]
[1672579573590,40.0,9.9348,9.9217,40.0]
[1672579573804,40.0,9.9348,9.9218,95.67]
[1672579574028,106.35978216,9.9348,9.9219,40.0]
[1672579574240,174.15575661,9.9348,9.9221,40.0]
[1672579574450,174.15575661,9.9348,9.9222,95.67]
[1672579574762,40.0,9.9346,9.9222,75.67]
[1672579574982,40.0,9.9346,9.9221,75.67]
[1672579575187,300.46794257,9.9345,9.9221,75.67]
[1672579575387,40.0,9.9344,9.9221,75.67]
[1672579575595,95.57,9.9343,9.9221,75.67]
[1672579575928,40.0,9.9342,9.9221,75.67]
[1672579576113,40.0,9.934,9.9221,75.67]
[1672579576325,40.0,9.9338,9.9221,75.67]
[1672579576539,20.0,9.9337,9.9221,75.67]
[1672579576765,40.0,9.9336,9.9221,75.67]
[1672579576975,40.0,9.9334,9.9221,75.67]
[1672579577189,40.0,9.9332,9.9221,75.67]
[1672579577391,20.0,9.9331,9.9221,75.67]
[1672579577712,55.80730786,9.933,9.9221,75.67]
[1672579577916,40.0,9.9328,9.9221,75.67]
[1672579578231,40.0,9.9326,9.9221,75.67]
[1672579578443,40.0,9.9324,9.9221,75.67]
[1672579578652,20.0,9.9323,9.9221,75.67]
[1672579578869,40.0,9.9322,9.9221,75.67]
[1672579579055,40.0,9.932,9.9221,75.67]
[1672579579269,20.0,9.9319,9.9221,75.67]
[1672579579494,40.0,9.9318,9.9221,75.67]
[1672579579709,136.61350541,9.9318,9.9221,75.67]
[1672579579911,72.45670541,9.9317,9.9221,75.67]
[1672579580232,40.0,9.9316,9.9221,75.67]
[1672579580424,64.1568,9.9316,9.9221,75.67]
[1672579580846,131.75316084,9.9316,9.9221,75.67]
[1672579581060,40.0,9.9314,9.9221,75.67]
[1672579581684,40.0,9.9312,9.9221,75.67]
[1672579582652,40.0,9.931,9.9221,75.67]
[1672579583265,40.0,9.9308,9.9221,75.67]
[1672579583997,40.0,9.9306,9.9221,75.67]
[1672579584746,40.0,9.9304,9.9221,75.67]
[1672579585360,24.8336,9.9303,9.9221,75.67]
[1672579585996,40.0,9.9302,9.9221,75.67]
[1672579586214,64.8336,9.9302,9.9221,75.67]
[1672579586842,40.0,9.93,9.9221,75.67]
[1672579587586,64.9199,9.93,9.9221,75.67]
[1672579588954,40.0,9.9298,9.9221,75.67]
[1672579592300,72.45670541,9.9297,9.9221,75.67]
[1672579592632,40.0,9.9296,9.9221,75.67]
[1672579596835,40.0,9.9294,9.9221,75.67]
[1672579600834,40.0,9.9292,9.9221,75.67]
[1672579601668,67.56717764,9.9293,9.9221,75.67]
[1672579602196,40.0,9.9292,9.9221,75.67]
[1672579604308,67.56717764,9.9293,9.9222,40.0]
[1672579604629,67.56717764,9.9293,9.9224,40.0]
[1672579604936,67.56463933,9.9291,9.9226,40.0]
[1672579605157,67.56463933,9.9291,9.9227,75.66]
[1672579605764,23.4392,9.9296,9.9227,75.66]
[1672579607242,23.4392,9.9296,9.9225,75.66]
[1672579607767,23.4392,9.9296,9.9222,40.0]
[1672579607975,23.4392,9.9296,9.9223,75.67]
[1672579608828,67.56971584,9.9295,9.9224,40.0]
[1672579609036,67.56971584,9.9295,9.9225,75.66]
[1672579609437,67.56971584,9.9295,9.9222,40.0]
[1672579609651,67.56971584,9.9295,9.9224,40.0]
[1672579609866,67.56971584,9.9295,9.9225,75.66]
[1672579610402,40.0,9.9294,9.9225,75.66]
[1672579610614,40.0,9.9294,9.9221,75.67]
[1672579612722,40.0,9.9292,9.9221,75.67]
[1672579613030,72.45670541,9.9291,9.9221,75.67]
[1672579613432,40.0,9.929,9.9221,75.67]
[1672579613853,72.45670541,9.9289,9.9221,75.67]
[1672579614101,40.0,9.9288,9.9221,75.67]
[1672579615533,72.45670541,9.9287,9.9221,75.67]
[1672579615744,40.0,9.9286,9.9221,75.67]
[1672579615967,106.35978216,9.9286,9.9221,75.67]
[1672579616177,40.0,9.9284,9.9221,75.67]
[1672579616612,40.0,9.9282,9.9221,75.67]
[1672579620687,40.0,9.928,9.9221,75.67]
[1672579621108,40.0,9.9278,9.9221,75.67]
[1672579621538,40.0,9.9276,9.9221,75.67]
[1672579621954,40.0,9.9274,9.9221,75.67]
[1672579624995,40.0,9.9272,9.9221,75.67]
[1672579626484,116.74457792,9.9272,9.922,46.3465]
[1672579626690,116.74457792,9.9272,9.9221,75.67]
[1672579627306,116.74457792,9.9272,9.922,46.3465]
[1672579627743,116.74457792,9.9272,9.9221,75.67]
[1672579628149,116.74457792,9.9272,9.922,46.3465]
[1672579628787,40.0,9.927,9.922,46.3465]
[1672579632782,67.53671118,9.9269,9.922,46.3465]
[1672579633005,40.0,9.9268,9.922,46.3465]
[1672579633201,67.53671118,9.9269,9.922,46.3465]
[1672579633413,40.0,9.9268,9.922,46.3465]
[1672579636788,40.0,9.9266,9.922,46.3465]
[1672579640765,40.0,9.9264,9.922,46.3465]
[1672579640980,40.0,9.9264,9.9221,75.67]
[1672579641192,67.53163201,9.9265,9.9221,75.67]
[1672579641947,76.74457792,9.9272,9.9221,75.67]
[1672579645006,67.53925062,9.9271,9.9221,75.67]
[1672579648671,116.74457792,9.927,9.922,46.3465]
[1672579649108,40.0,9.9268,9.922,46.3465]
[1672579649414,76.74457792,9.9267,9.922,46.3465]
[1672579649629,40.0,9.9266,9.922,46.3465]
[1672579650030,40.0,9.9266,9.9221,75.67]
[1672579650239,40.0,9.9266,9.922,46.3465]
[1672579652886,40.0,9.9264,9.922,46.3465]
[1672579654042,67.53163201,9.9265,9.922,46.3465]
[1672579654565,40.0,9.9264,9.922,46.3465]
[1672579656755,40.0,9.9262,9.922,46.3465]
[1672579657614,40.0,9.9262,9.9204,75.68]
[1672579659590,40.0,9.9262,9.9112,151.10399407]
[1672579659591,150.99102675,9.9261,9.9134,75.62056346]
[1672579659810,40.0,9.9259,9.9096,40.0]
[1672579660009,75.64,9.9258,9.9096,40.0]
[1672579660220,60.0,9.9257,9.9096,40.0]
[1672579660426,40.0,9.9255,9.9098,40.0]
[1672579660640,95.64,9.9254,9.9099,75.76]
[1672579660857,40.0,9.9253,9.91,40.0]
[1672579661067,40.0,9.9251,9.9102,40.0]
[1672579661273,20.0,9.925,9.9104,40.0]
[1672579661493,40.0,9.9249,9.9105,75.76]
[1672579661821,40.0,9.9247,9.9106,40.0]
[1672579662015,40.0,9.9247,9.92,235.02788737]
[1672579662016,40.0,9.9245,9.92,235.02788737]
[1672579662229,40.0,9.9243,9.92,235.02788737]
[1672579662436,20.0,9.9242,9.92,235.02788737]
[1672579662649,40.0,9.9241,9.92,235.02788737]
[1672579662860,40.0,9.9239,9.92,235.02788737]
[1672579663074,20.0,9.9238,9.92,235.02788737]
[1672579663274,40.0,9.9237,9.92,235.02788737]
[1672579663608,40.0,9.9235,9.92,235.02788737]
[1672579663801,40.0,9.9233,9.92,235.02788737]
[1672579664011,20.0,9.9232,9.92,235.02788737]
[1672579664219,40.0,9.9231,9.92,235.02788737]
[1672579664448,1173.78988199,9.923,9.92,235.02788737]
[1672579664635,1185.69886,9.9229,9.92,235.02788737]
[1672579664846,40.0,9.9227,9.92,235.02788737]
[1672579665071,40.0,9.9225,9.92,235.02788737]
[1672579665279,20.0,9.9224,9.92,235.02788737]
[1672579665601,40.0,9.9223,9.92,235.02788737]
[1672579665802,40.0,9.9221,9.92,235.02788737]
[1672579666001,40.0,9.9219,9.92,235.02788737]
[1672579666208,20.0,9.9218,9.92,235.02788737]
[1672579666419,40.0,9.9216,9.92,235.02788737]
[1672579667077,40.0,9.9214,9.92,235.02788737]
[1672579667273,1114.08807066,9.9213,9.92,235.02788737]
[1672579667480,40.0,9.9212,9.92,235.02788737]
[1672579667807,40.0,9.921,9.92,235.02788737]
[1672579668324,40.0,9.9208,9.92,235.02788737]
[1672579668535,40.0,9.9206,9.92,235.02788737]
[1672579668949,40.0,9.9204,9.92,235.02788737]
[1672579669368,1100.49580757,9.9205,9.92,235.02788737]
[1672579672957,67.45412384,9.9204,9.92,235.02788737]
[1672579675368,40.0,9.9203,9.92,235.02788737]
[1672579675598,40.0,9.9201,9.92,235.02788737]
[1672579676210,1005.05979966,9.9202,9.92,235.02788737]
[1672579676642,40.0,9.9201,9.92,235.02788737]
[1672579676852,67.4503095,9.9201,9.92,235.02788737]
[1672579677166,107.4503095,9.9201,9.92,235.02788737]
[1672579677591,67.4503095,9.9201,9.92,235.02788737]